Cogmind - Beta 17.1 @@@ ROGUE MODE // 2026.09.14 @ 21:09:55 Player: 4R-ZE3 Result: Destroyed by Executioner with Helical Railgun Performance ------------- Evolutions (9) 4500 Regions Visited (22) 4400 Robots Destroyed (612) 3060 Value Destroyed (40070) 40070 Prototype IDs (126) 2520 Alien Tech Used (8) 1600 Bonus (27092) 27092 TOTAL SCORE: 83242 Bonus ------- Triggered High Security 1000 High Alert Combat Kills 20577 Follower Combat Kills 1361 Network Hubs Disabled 400 Met Zhirov 300 Built Enhanced Grunts 300 A7 Reached Mainframe 300 Met R17 at Cetus 500 Met R17 at Research 2000 Scanned by Researcher 500 Friendly Fire -146 Cogmind --------- Core Integrity 0/1600 Matter 155/300 Energy 100/100 System Corruption 15% Temperature Cool (0) Movement Flying (133) Location -1/Access Parts ------- > --- POWER (3) -------- (None) > --- PROPULSION (6) --- Flying Fieldthrust-Combat Exoskeleton > --- UTILITY (11) ----- Advanced Signal Interpreter > --- WEAPON (5) ------- (None) > --- INVENTORY (5) ---- Advanced Heavy Siege Treads Concept Phasing Heat Sink Concept Thermoelectric Network Concept Cloak Mesh Peak State ------------ > --- POWER ------------ Multi-Quantum Reactor > --- PROPULSION ------- Flying Fieldthrust-Combat Exoskeleton > --- UTILITY ---------- Armored Scrap Engine Concept Thermoelectric Network Concept Antigrav Storage Unit Spectral Analyzer Experimental Targeting Computer Experimental Weapon Cycler Concept Reaction Jets Experimental Force Field > --- WEAPON ----------- Hypercooled Linear Accelerator Hpw. KE Hardcell Construct/C > --- INVENTORY -------- Quantum Reactor Improved Quantum Reactor Advanced Cryofiber Web Concept Phasing Heat Sink Concept Phasing Heat Sink Experimental Cooling System Concept Thermoelectric Network Experimental Matter Compressor Experimental Armor Integrity Analyzer Experimental Transmission Jammer Experimental Cloaking Device Concept Cloak Mesh Concept Beam Splitter Experimental EM Shield Advanced Component Analysis Suite Concept Matter Streamer Crosscalibrator Dimensional Node Initializer Transdimensional Reconstructor Transdimensional Reconstructor Subatomic Replicator Concept Rapid Grenade Launcher [Rating: 248] Favorites ----------- Power Constructs Engine Improved Ion Engine Power Core Micro Nuclear Core Reactor Constructs Propulsion Constructs Treads Light Treads Leg Improved Titanium Leg Wheel Compact Wheel Hover Unit Aerolev Unit Flight Unit Constructs Utility Armored Scrap Engine Device Armored Scrap Engine Storage Huge Storage Unit Processor Experimental Targeting Computer Protection Light Armor Plating Artifact Phase Armor Weapon Constructs Energy Gun Particle Gun Energy Cannon Cooled Particle Cannon Ballistic Gun Light Assault Rifle Ballistic Cannon Constructs Launcher Fusion Bomb Launcher Special Weapon Mining Laser Impact Weapon Hammer Slashing Weapon Sigix Broadsword Build | -11 -10 -10 -8 -7 -7 -7 -5 -5 -5 -5 -4 -4 -4 -4 -4 -4 -3 -3 -2 -2 -2 -1 ------- Run | Yrd Mat Sub Mat Fac Sto Rec Fac Upp Upp Zhi Pro Fac Ext Cet Arc Hub Res Tes Res Qua Frg Acc Slots Evolved 18 | . . . 4 2 . . 4 . . . . 2 . . . . 2 . 2 . . 2 Power 2 | . . . . . . . 1 . . . . 1 . . . . . . . . . . Propulsion 4 | . . . 2 1 . . 1 . . . . . . . . . . . . . . . Utility 9 | . . . 1 1 . . 2 . . . . 1 . . . . . . 2 . . 2 Weapon 3 | . . . 1 . . . . . . . . . . . . . 2 . . . . . Parts Attached 138 | 6 7 . 18 15 8 4 2 . 1 3 2 4 3 1 3 3 3 4 4 11 26 10 Power 9 | 1 1 . 1 1 1 . 1 . 1 1 . 1 . . . . . . . . . . Engine 5 | 1 1 . . . 1 . 1 . . . . 1 . . . . . . . . . . Core 3 | . . . 1 1 . . . . 1 . . . . . . . . . . . . . Reactor 1 | . . . . . . . . . . 1 . . . . . . . . . . . . Propulsion 23 | 2 . . 7 6 4 1 . . . 1 . . . . . . 1 . . . . 1 Treads 16 | 2 . . 6 3 4 . . . . . . . . . . . . . . . . 1 Leg 4 | . . . . 3 . . . . . 1 . . . . . . . . . . . . Wheel 1 | . . . . . . 1 . . . . . . . . . . . . . . . . Hover 1 | . . . 1 . . . . . . . . . . . . . . . . . . . Flight 1 | . . . . . . . . . . . . . . . . . 1 . . . . . Utility 76 | 1 3 . 3 5 . 3 1 . . 1 2 3 3 1 3 3 2 1 4 7 24 6 Device 52 | . . . 3 4 . 2 1 . . 1 1 1 2 1 2 2 2 1 3 4 19 3 Storage 6 | 1 2 . . . . . . . . . . 1 . . . . . . 1 . 1 . Processor 11 | . . . . 1 . . . . . . . 1 . . 1 1 . . . . 4 3 Hackware . | . . . . . . . . . . . . . . . . . . . . . . . Protection 5 | . 1 . . . . 1 . . . . 1 . 1 . . . . . . 1 . . Artifact 2 | . . . . . . . . . . . . . . . . . . . . 2 . . Weapon 30 | 2 3 . 7 3 3 . . . . . . . . . . . . 3 . 4 2 3 Energy Gun 11 | 1 . . 5 3 . . . . . . . . . . . . . 2 . . . . Energy Cannon 5 | . . . . . 3 . . . . . . . . . . . . 1 . . . 1 Ballistic Gun 1 | 1 . . . . . . . . . . . . . . . . . . . . . . Ballistic Cannon 5 | . 2 . 1 . . . . . . . . . . . . . . . . 1 1 . Launcher 4 | . . . . . . . . . . . . . . . . . . . . 1 1 2 Special Weapon 1 | . 1 . . . . . . . . . . . . . . . . . . . . . Impact Weapon 2 | . . . 1 . . . . . . . . . . . . . . . . 1 . . Slashing Weapon 1 | . . . . . . . . . . . . . . . . . . . . 1 . . Piercing Weapon . | . . . . . . . . . . . . . . . . . . . . . . . Special Melee Weapon . | . . . . . . . . . . . . . . . . . . . . . . . Unidentified Prototypes 23 | . . . 2 1 1 1 . . . 4 . . . . 1 2 2 2 . 5 2 . Parts Lost 49 | . . . 1 4 4 . 2 . 1 . 1 . 2 . . . . . 1 1 9 23 Power 8 | . . . 1 1 1 . 1 . 1 . . . . . . . . . . . . 3 Propulsion 8 | . . . . 3 2 . . . . . . . . . . . . . . . . 3 Utility 25 | . . . . . 1 . 1 . . . 1 . 2 . . . . . 1 1 8 10 Weapon 8 | . . . . . . . . . . . . . . . . . . . . . 1 7 Highest Loss Streak 15 | . . . 1 3 4 . 1 . 1 . 1 . 1 . . . . . 1 1 4 15 To Critical Strikes 5 | . . . . 1 . . . . . . . . . . . . . . . . . 4 Average Backups 19 | 1 7 12 17 19 19 12 16 19 18 18 19 20 23 21 23 24 23 24 24 21 22 18 Power 1 | . 1 2 2 . . 4 1 2 2 2 2 1 . 1 1 . . . . . 1 . Propulsion 1 | . 2 3 3 2 . 2 3 2 2 1 1 2 2 1 1 1 . . 3 1 . . Utility 9 | . 1 2 4 5 4 4 4 6 6 7 10 10 13 12 12 12 13 14 11 13 12 10 Weapon 5 | . 2 5 8 11 13 . 6 9 8 7 4 5 5 5 8 9 8 9 8 4 3 3 Tool/Special . | . . . . . . . . . . . . . . . . . . . . . . . Unused Backups 203 | . 1 . 8 8 4 51 12 . 2 4 4 2 5 3 1 3 3 12 5 30 33 12 Power 19 | . . . 1 . . 1 9 . . . . 1 . . . 1 . . . 2 3 1 Propulsion 55 | . . . 2 2 1 27 . . 1 2 1 1 2 2 . . 1 . . 8 5 . Utility 39 | . . . 1 1 . . . . . . 1 . . . . 2 . 4 1 10 15 4 Weapon 87 | . 1 . 4 5 3 23 3 . 1 2 2 . 3 1 1 . 2 8 4 10 9 5 Tool/Special 3 | . . . . . . . . . . . . . . . . . . . . . 1 2 Average Slot Usage (%) 59 | . 99 100 96 97 97 66 48 52 51 48 46 50 47 47 46 47 42 41 46 48 48 44 Engine 2 | . 14 14 2 6 4 3 7 11 6 5 1 4 1 . . . . . . . . . Reactor 2 | . . . . . . . . . . . 3 4 4 5 5 5 4 4 4 4 4 3 Treads 9 | . 28 28 33 32 32 14 2 . . . 3 5 5 3 5 5 . . . 2 2 . Leg 1 | . . . . 3 3 . 2 5 5 5 1 . . 1 . . 3 4 4 . . . Device 14 | . . . 10 15 15 8 14 17 15 17 16 16 15 15 14 18 13 13 20 20 19 15 Storage 5 | . 14 14 9 7 7 7 5 5 5 5 5 5 5 5 5 5 4 4 4 4 4 3 Processor 7 | . . . . 6 7 7 5 5 5 5 5 8 8 5 5 5 9 9 8 8 9 13 Protection 1 | . 13 14 6 . . 1 1 . 1 . . . 1 5 5 1 . . . . . . Energy Gun 1 | . . . 8 22 9 . . . . . . . . . . . . . . . . . Energy Cannon 2 | . . . . . 12 9 . . . . 5 5 4 1 . . 1 4 1 . . . Ballistic Cannon 4 | . 26 28 18 . . 1 5 5 5 4 . . . 3 5 5 2 . 2 4 3 3 Peak Build Rating 248 | 6 9 10 29 45 48 57 87 87 88 102 115 123 128 138 142 149 155 177 183 221 248 238 Average Rating 124 | 4 8 9 20 36 44 42 73 87 87 91 108 118 123 129 137 144 146 151 175 194 219 196 On Entrance 97 | . 6 9 10 28 45 45 57 87 87 88 102 111 123 123 138 141 145 147 160 178 204 208 Avg Prop Armor Cover (%) 4 | . . . . 4 7 . . . . . . . . . . . . . . . . . Naked Turns . | . . . . . . . . . . . . . . . . . . . . . . . Heaviest Build 189 | 10 56 56 62 60 74 72 74 74 76 77 85 134 148 136 146 145 140 140 145 187 189 151 Greatest Support 348 | 40 40 40 80 108 116 127 127 127 127 183 244 244 244 227 227 227 227 227 204 317 348 173 Greatest Overweight (x) 3 | . 1 1 1 1 1 3 . . . . . . . . . . . . . . . . Average Overweight (x) . | . . 1 . . . . . . . . . . . . . . . . . . . . Largest Inventory Capacity 25 | 8 20 20 20 20 20 20 20 20 20 20 20 25 25 25 25 25 25 25 25 25 25 25 Average Capacity 22 | 6 12 20 20 20 20 20 20 20 20 20 20 20 25 25 25 25 25 25 25 25 25 22 Most Carried 25 | 4 10 13 20 20 20 20 20 20 20 20 20 23 25 25 25 25 25 25 25 25 25 23 Average Carried 19 | 2 7 12 17 19 19 12 17 20 19 18 19 19 23 21 24 24 23 24 24 23 23 18 Final Capacity 25 | 8 20 20 20 20 20 20 20 20 20 20 20 25 25 25 25 25 25 25 25 25 25 5 Final Carried 25 | 4 10 13 20 20 19 20 20 20 20 17 20 23 21 25 25 25 24 23 25 25 20 5 Scrap Engine Consumption 265 | . . . . . . 73 16 . 4 8 4 4 18 11 2 5 7 10 5 40 52 6 Constructs Created 4 | . . . . . . 3 1 . . . . . . . . . . . . . . . Constructs Modified 116 | . . . . . . 28 8 . 1 4 3 2 8 3 2 . 6 3 3 20 22 3 Class Distribution -------------------- 53% | Construct 11% | Scavenger-Construct 9% | Mutant 9% | Commander-Construct 5% | Scavenger-Skirmisher 3% | Scavenger-Gunner 3% | Scavenger-Tank Dominant Class ---------------- Mutant | -10/Materials Mutant | -10/Subcaves Tank | -8/Materials Scavenger-Skirmisher | -7/Factory Scavenger-Skirmisher | -7/Storage Construct | -7/Recycling Construct | -5/Factory Construct | -5/Upper Caves Construct | -5/Upper Caves Construct | -5/Zhirov Construct | -4/Proximity Caves Construct | -4/Factory Commander-Construct | -4/Extension Commander-Construct | -4/Cetus Commander-Construct | -4/Archives Commander-Construct | -4/Hub_04(d) Construct | -3/Research Construct | -3/Testing Construct | -2/Research Construct | -2/Quarantine Construct | -2/Protoforge Scavenger-Construct | -1/Access Resources | -11 -10 -10 -8 -7 -7 -7 -5 -5 -5 -5 -4 -4 -4 -4 -4 -4 -3 -3 -2 -2 -2 -1 ----------- Run | Yrd Mat Sub Mat Fac Sto Rec Fac Upp Upp Zhi Pro Fac Ext Cet Arc Hub Res Tes Res Qua Frg Acc Matter Collected 9096 | 217 405 91 527 379 210 131 507 . 409 . 193 100 579 144 146 122 102 575 317 825 2360 757 Remotely 822 | . . . . . . . . . . . . . . . . . . . . . 300 522 Salvage Created 37293 | . 413 76 499 1122 490 1281 943 . 422 . 678 93 2289 257 399 346 692 2135 752 1018 12920 10468 Parts 1511 | . 25 6 28 38 30 60 24 . 22 . 32 6 87 12 22 18 33 74 51 104 695 144 Haulers Intercepted 6 | . 2 . 1 . . . . . . . 1 . . . . . . . . . . 2 Recyclers Shooed 4 | . 1 . . . . 1 . . . . . . 2 . . . . . . . . . Parts Field Recycled . | . . . . . . . . . . . . . . . . . . . . . . . Retrieved Matter . | . . . . . . . . . . . . . . . . . . . . . . . Parts Self-Destructed 53 | . . 8 . . . . . . 18 . 27 . . . . . . . . . . . Prevented . | . . . . . . . . . . . . . . . . . . . . . . . Parts Restored 3 | . . . . . . . . . . . . . . . . . . . . . 3 . Faulty 3 | . . . . . . . . . . . . . . . . . . . . . 3 . Kills | -11 -10 -10 -8 -7 -7 -7 -5 -5 -5 -5 -4 -4 -4 -4 -4 -4 -3 -3 -2 -2 -2 -1 ------- Run | Yrd Mat Sub Mat Fac Sto Rec Fac Upp Upp Zhi Pro Fac Ext Cet Arc Hub Res Tes Res Qua Frg Acc Combat Hostiles Destroyed 503 | . 12 4 11 23 9 4 20 . 10 . 9 5 31 4 3 3 9 31 11 11 163 130 Melee 2 | . . . . . . . . . . . . . . . . . . . . . 1 1 Guns 27 | . . . 4 21 2 . . . . . . . . . . . . . . . . . Cannons 390 | . 12 4 7 . 6 4 20 . 10 . 9 1 31 4 3 3 9 19 11 10 136 91 AOE 60 | . . . . . . . . . . . . 4 . . . . . . . . 23 33 Classes Destroyed 32 | . 2 1 4 5 . 1 . . . . . . 3 . . . 1 1 . 1 12 1 Worker 7 | . . . . 1 . . . . . . . . . . . 4 . . . . 1 1 Builder 24 | . . . 1 1 1 9 . . . . . . 3 . . 2 1 . 1 . 2 3 Tunneler 1 | . . . . . . . . . . . . . . . . . 1 . . . . . Hauler 6 | . 2 . 1 . . . . . . . 1 . . . . . . . . . . 2 Recycler 16 | . . . . 1 . 10 . . . . . . 3 . . . . 1 . . . 1 Carrier 11 | . . . . . . . . . . . . . . . . . . 1 . . . 10 Mechanic 12 | . . . . . . . . . . . . . . . . . . . . . 2 10 Operator 9 | . . . . 2 1 . . . . . . . . . 5 . . . . . 1 . Drone 2 | . . . . . . . . . . . . . . . . . . . . . 2 . Watcher 20 | . . . 1 1 . . . . . . . . 3 1 . 1 2 3 3 . 3 2 Swarmer 37 | . . 2 . 3 2 . . . 1 . . 4 9 . . . . 5 . . 5 6 Saboteur 15 | . . . . . . . . . . . . . . . . . . . . . 3 12 Grunt 174 | . 12 2 5 10 2 . 15 . 1 . 5 . 7 . . . 4 11 . . 54 46 Brawler 18 | . . . . . . . . . . . . . 1 . . . . . . . 8 9 Duelist 19 | . . . 1 . . . . . . . . . 1 . . . . 1 . . 9 7 Protector 17 | . . . . . . . . . . . . . 1 . . . . . . . 8 8 Researcher 3 | . . . . . . . . . . . . . . . . . . . . . 3 . Sentry 53 | . . . 5 3 3 1 5 . . . . 1 10 . 3 . 1 3 1 . 14 3 Specialist 6 | . . . . . . . . . . . . . . . . . . . . . 6 . Hunter 23 | . . . . 4 1 . . . 5 . 2 . . . . . 3 . . . 2 6 Programmer 60 | . . . . 3 1 . . . 3 . 2 . . . . 1 1 10 10 . 19 10 Q-Series 1 | . . . . . . . . . . . . . . . . . . . . . . 1 Behemoth 2 | . . . . . . . . . . . . . 2 . . . . . . . . . Cetus Guard 4 | . . . . . . . . . . . . . . 4 . . . . . . . . Quarantine Guard 10 | . . . . . . . . . . . . . . . . . . . . 10 . . Lightning 2 | . . . . . . . . . . . . . . . . 2 . . . . . . Hotshot 4 | . . . . . . . . . . . . . . . . . . . . . 4 . Decapitator 12 | . . . . . . . . . . . . . . . . . . . . . 12 . Immortal 8 | . . . . . . . . . . . . . . . . . . . . . 8 . Overlord 1 | . . . . . . . . . . . . . . . . . . . . . 1 . Striker 12 | . . . . . . . . . . . . . . . . . . . . . 3 9 Executioner 15 | . . . . . . . . . . . . . . . . . . . . . 2 13 Alpha 7 2 | . . . . . . . . . . . . . . . . . . . . . 2 . Fortress 1 | . . . . . . . . . . . . . . . . . . . . 1 . . V-Series 1 | . . . . . . . . . . . . . . . . . . . . . 1 . Protovariant H 1 | . . . . . . . . . . . . . . . . . . 1 . . . . Subdweller 3 | . . . . . . 3 . . . . . . . . . . . . . . . . Tinkerer 1 | . . . . . . . . . . . . . . . . . . . . . 1 . Best Kill Streak 49 | . 6 2 2 5 6 4 5 . 3 . 3 4 9 4 6 5 7 7 4 2 20 49 Combat Bots Only 41 | . 5 2 2 4 5 2 5 . 3 . 3 4 8 3 3 3 4 6 3 2 19 41 Max Kills in Single Turn 7 | . 1 1 1 2 2 1 1 . 1 . 1 4 2 1 1 5 2 2 2 1 5 7 Gunslinging . | . . . . . . . . . . . . . . . . . . . . . . . Exploded 6 | . . . . . . . . . . . . 4 . . . . . . . . 5 6 Melee 1 | . . . . . . . . . . . . . . . . . . . . . 1 1 Uniques/NPCs Destroyed . | . . . . . . . . . . . . . . . . . . . . . . . Combat | -11 -10 -10 -8 -7 -7 -7 -5 -5 -5 -5 -4 -4 -4 -4 -4 -4 -3 -3 -2 -2 -2 -1 -------- Run | Yrd Mat Sub Mat Fac Sto Rec Fac Upp Upp Zhi Pro Fac Ext Cet Arc Hub Res Tes Res Qua Frg Acc Hostile Shots Fired 2407 | . 33 43 30 210 127 4 55 . 59 . 34 11 132 5 7 34 44 147 51 40 629 712 Missed 986 | . 14 14 8 78 54 1 14 . 19 . 10 6 46 2 3 13 21 43 19 20 286 315 Hits 1421 | . 19 29 22 132 73 3 41 . 40 . 24 5 86 3 4 21 23 104 32 20 343 397 Melee 41 | . . . . . . . . . . . . . 2 . . . . . . . 25 14 Projectile 1380 | . 19 29 22 132 73 3 41 . 40 . 24 5 84 3 4 21 23 104 32 20 318 383 AOE 5 | . . 2 . . . . . . . . . . . . . . . . . . 3 . Critical Strikes 76 | . . . . 1 . . 1 . 2 . 2 . 3 . . 1 1 8 4 2 30 21 Damage Taken 27014 | . 218 404 350 1321 792 62 925 . 662 . 444 140 1149 51 72 632 229 679 191 728 7471 10494 Core 2915 | . 20 112 15 136 104 . 144 . 91 . 16 50 78 . . 57 24 106 2 25 410 1525 Absorbed by Shields 4699 | . . . . . . . . . . . 37 91 811 49 . 184 190 396 208 193 2540 . Ignored by Resistances 2928 | . . . . . . . . . . . . . 48 36 24 . 36 1429 378 . 977 . Regen/Repaired (Parts) 8712 | . . . . . . . 264 . 217 401 133 70 1092 56 89 . 581 59 110 1035 3855 750 Core Remaining (%) 77 | 100 . 47 97 . . 65 . . . . 74 . . . . 83 . 85 . . 65 . Volleys Fired 1398 | . 41 17 30 59 22 38 49 . 29 . 22 10 103 26 35 42 31 106 45 57 446 190 Largest 3 | . 2 2 3 3 3 3 1 . 1 . 1 1 1 1 1 1 1 1 1 1 1 1 Hottest 282 | . 100 60 184 208 208 93 139 . 139 . 81 81 81 81 81 81 81 63 63 63 282 120 Shots Fired 1689 | . 78 34 90 175 64 59 49 . 29 . 22 10 103 26 35 42 31 106 45 57 443 191 Gun 227 | . 4 . 24 175 9 15 . . . . . . . . . . . . . . . . Cannon 1431 | . 70 34 66 . 55 44 49 . 29 . 22 10 103 26 35 42 31 106 45 57 436 171 Launcher 27 | . . . . . . . . . . . . . . . . . . . . . 7 20 Special 4 | . 4 . . . . . . . . . . . . . . . . . . . . . Kinetic 1158 | . 72 34 66 . . 5 49 . 29 . 22 10 103 26 35 42 31 18 40 57 356 163 Thermal 402 | . 6 . 24 175 64 40 . . . . . . . . . . . . 5 . 80 8 Explosive 27 | . . . . . . . . . . . . . . . . . . . . . 7 20 Electromagnetic 102 | . . . . . . 14 . . . . . . . . . . . 88 . . . . Robot Hit Streak 39 | . 6 5 21 25 10 10 14 . 6 . 10 4 18 13 4 4 7 11 9 13 21 39 Robot Miss Streak 8 | . 5 6 3 4 3 3 5 . 5 . 1 1 3 1 8 2 2 2 3 1 3 2 Penetration Max 2 | . . . . . . . . . . . . . 1 1 . . 1 1 1 . 2 2 Secondary Targets 4 | . . . 1 3 . . . . . . . . . . . . . . . . . . Max Gunslinging Chain 1 | . . . 1 1 . . . . . . . . . . . . . . . . . . Shots Hit Robots 1151 | . 40 18 64 136 40 40 49 . 24 . 18 4 83 18 15 16 18 64 27 30 292 155 Core Hits 756 | . 16 5 26 56 18 34 70 . 19 . 9 3 34 8 5 7 13 22 11 14 196 190 Critical Kills 9 | . . . . . 1 . . . . . . . . . . . 2 . . . 6 . Critical Parts Destroyed 7 | . . . . . . . . . . . . . . . . . 1 . . . 6 . Critical Strikes 43 | . 2 . 4 6 2 . . . . . . . . . . 1 3 1 . 4 19 1 Burn 7 | . . . . 6 1 . . . . . . . . . . . . . . . . . Meltdown 1 | . . . . . 1 . . . . . . . . . . . . . . . . . Destroy 18 | . . . . . . . . . . . . . . . . 1 3 . . . 14 . Blast 16 | . 2 . 4 . . . . . . . . . . . . . . . . 4 5 1 Corrupt 1 | . . . . . . . . . . . . . . . . . . 1 . . . . Melee Attacks 11 | . . . 1 9 . . . . . . . . . . . . . . . 1 . . Kinetic 1 | . . . . . . . . . . . . . . . . . . . . 1 . . Impact 10 | . . . 1 9 . . . . . . . . . . . . . . . . . . Slashing . | . . . . . . . . . . . . . . . . . . . . . . . Piercing . | . . . . . . . . . . . . . . . . . . . . . . . Sneak Attacks 1 | . . . . 1 . . . . . . . . . . . . . . . . . . Combat Hostiles . | . . . . . . . . . . . . . . . . . . . . . . . Follow-up Attacks . | . . . . . . . . . . . . . . . . . . . . . . . Damage Inflicted 174913 | . 732 323 1152 2366 1126 977 3181 . 1535 . 2021 929 9735 1790 1472 2034 2161 5680 3291 4505 77542 52361 Guns 3081 | . 10 . 335 2366 112 258 . . . . . . . . . . . . . . . . Cannons 156066 | . 720 323 817 . 1014 719 3181 . 1535 . 2021 463 9735 1790 1472 1593 2161 5680 3291 4505 71582 43464 Explosions 15764 | . . . . . . . . . . . . 466 . . . 441 . . . . 5960 8897 Melee . | . . . . . . . . . . . . . . . . . . . . . . . Ramming 2 | . 2 . . . . . . . . . . . . . . . . . . . . . Kinetic 135272 | . 720 323 817 . . 101 3181 . 1535 . 2021 463 9735 1790 1472 1593 2161 1404 2797 4505 57215 43439 Thermal 19792 | . 10 . 335 2366 1126 628 . . . . . 466 . . . . . . 494 . 14367 . Explosive 14666 | . . . . . . . . . . . . . . . . . . . . . 5960 8706 Electromagnetic 5156 | . . . . . . 248 . . . . . . . . . 441 . 4276 . . . 191 Impact 25 | . . . . . . . . . . . . . . . . . . . . . . 25 Slashing . | . . . . . . . . . . . . . . . . . . . . . . . Piercing . | . . . . . . . . . . . . . . . . . . . . . . . Highest Corruption 15 | . . . . . 1 1 . . 2 2 2 . 4 4 4 10 . 8 2 2 7 15 Average Corruption 2 | . . . . . 1 1 . . 1 2 2 . 3 4 3 3 . 2 1 1 2 10 Corruption Purged 14 | . . . . . . 1 . . . . . . . . 4 . . . . 2 7 . Corruption Blocked . | . . . . . . . . . . . . . . . . . . . . . . . Effects 128 | . . . . . . 9 . . 7 3 8 . 12 9 4 7 . 13 . 1 43 12 Message Errors 35 | . . . . . . 2 . . 3 . 5 . 1 2 . 1 . 2 . 1 14 4 Matter Fused 36 | . . . . . . 3 . . 2 1 1 . 5 2 1 2 . 3 . . 13 3 Heat Flow Errors 16 | . . . . . . . . . 2 . . . 1 2 1 1 . 4 . . 3 2 Energy Discharges 9 | . . . . . . 2 . . . . 1 . 1 . 1 . . . . . 3 1 Parts Rejected 2 | . . . . . . . . . . . . . 1 . . . . 1 . . . . Parts Fused 1 | . . . . . . . . . . . . . . 1 . . . . . . . . Data Loss (minor) 17 | . . . . . . 1 . . . 1 1 . 2 2 1 2 . 2 . . 4 1 Data Loss (major) 4 | . . . . . . . . . . 1 . . 1 . . . . . . . 2 . Misfires 2 | . . . . . . 1 . . . . . . . . . . . . . . . 1 Alerts 3 | . . . . . . . . . . . . . . . . 1 . 1 . . 1 . Weapon Failures 3 | . . . . . . . . . . . . . . . . . . . . . 3 . Overload Shots . | . . . . . . . . . . . . . . . . . . . . . . . Overflow Damage 37888 | . . . 12 . 8 24 1 . 97 . 348 112 999 144 487 334 139 1147 735 426 18492 14383 Projectiles 37638 | . . . 12 . 8 24 1 . 97 . 348 31 999 144 487 310 139 1147 735 426 18406 14324 Explosions 250 | . . . . . . . . . . . . 81 . . . 24 . . . . 86 59 Melee . | . . . . . . . . . . . . . . . . . . . . . . . Knockbacks 221 | . 12 3 7 . . . 10 . 8 . 4 1 23 2 5 6 3 1 5 . 74 57 Impact . | . . . . . . . . . . . . . . . . . . . . . . . Kinetic 196 | . 11 3 7 . . . 9 . 7 . 4 1 19 2 5 6 3 1 5 . 66 47 Secondary 25 | . 1 . . . . . 1 . 1 . . . 4 . . . . . . . 8 10 Self-Inflicted Damage 462 | . . . . . . . . . . . . 136 . . . 180 . . . . . 146 Shots 8 | . . . . . . . . . . . . 2 . . . 2 . . . . . 4 Rammed 1 | . 1 . . . . . . . . . . . . . . . . . . . . . Targets Rammed 1 | . 1 . . . . . . . . . . . . . . . . . . . . . Kicked . | . . . . . . . . . . . . . . . . . . . . . . . Crushed . | . . . . . . . . . . . . . . . . . . . . . . . Highest Temperature 325 | . 236 . 153 143 45 160 138 . 126 . 4 138 140 210 277 163 12 240 220 325 286 252 Average Temperature 74 | . 71 . 23 41 14 36 55 . 50 . 4 61 31 33 58 54 12 61 97 92 151 94 Received Heat Transfer 4963 | . 117 72 171 267 216 12 255 . 36 . 87 8 150 . 9 27 56 14 20 9 2465 972 Thermoelectric Energy+ 5977 | . . . . . . . . . . . . . . . . . . . . . 5799 178 Effects 11 | . 2 . . . . . . . . . . . . . . . . 2 . 1 5 1 Energy Bleed 3 | . . . . . . . . . . . . . . . . . . . . 1 1 1 Interference 8 | . 2 . . . . . . . . . . . . . . . . 2 . . 4 . Siege Activations . | . . . . . . . . . . . . . . . . . . . . . . . Martial Activations . | . . . . . . . . . . . . . . . . . . . . . . . Shielding Activations . | . . . . . . . . . . . . . . . . . . . . . . . Robots Disrupted . | . . . . . . . . . . . . . . . . . . . . . . . Combat Hostiles . | . . . . . . . . . . . . . . . . . . . . . . . Robots Corrupted 22 | . . . . . . . . . . . . . 1 . . . . 13 . . 3 5 Combat Hostiles 20 | . . . . . . . . . . . . . . . . . . 12 . . 3 5 Parts Fried 70 | . . . . . . . . . . . . . 5 . . 4 . 42 . . 7 12 Impact Corruptions 31 | . . . . . . . . . . . . . 1 . . . . . . . 12 18 Robots Melted 3 | . . . . 2 1 . . . . . . . . . . . . . . . . . Combat Hostiles 3 | . . . . 2 1 . . . . . . . . . . . . . . . . . Parts Melted 30 | . . . 3 18 6 1 . . . . . . . . . . 1 . . . 1 . Heat Transferred 11690 | . 25 . 740 5665 1703 888 . . . . . 300 . . . . . . 200 . 2169 . Parts Sabotaged 8 | . . . . . . . . . . . . . . . . . . . . . 2 6 Parts Stolen . | . . . . . . . . . . . . . . . . . . . . . . . Parts Stripped 18 | . . . . . . . . . . . . . . . . . . . . 18 . . Power Chain Reactions . | . . . . . . . . . . . . . . . . . . . . . . . Alert | -11 -10 -10 -8 -7 -7 -7 -5 -5 -5 -5 -4 -4 -4 -4 -4 -4 -3 -3 -2 -2 -2 -1 ------- Run | Yrd Mat Sub Mat Fac Sto Rec Fac Upp Upp Zhi Pro Fac Ext Cet Arc Hub Res Tes Res Qua Frg Acc Maximum Alert Level 5 | . 1 . . 1 1 . 2 . . . . 1 4 3 2 4 3 3 2 1 5 5 Low Security (%) 51 | 100 92 . 100 91 73 100 . . . . . 86 18 . . 43 . . . 87 14 . Level 1 13 | . 7 . . 8 26 . 52 . . . . 13 42 . 44 11 . 25 . 12 19 . Level 2 14 | . . . . . . . 47 . . . . . 8 58 55 28 89 37 100 . 12 . Level 3 5 | . . . . . . . . . . . . . 15 41 . 10 10 36 . . 6 . Level 4 2 | . . . . . . . . . . . . . 16 . . 5 . . . . 7 . Level 5 7 | . . . . . . . . . . . . . . . . . . . . . 37 16 High Security 5 | . . . . . . . . . . . . . . . . . . . . . 1 83 Max Security . | . . . . . . . . . . . . . . . . . . . . . . . Peak Influence 6488 | . 228 . 74 252 259 99 513 . . . . 219 1232 774 499 1166 717 946 540 299 5017 6488 Initial 3009 | . . . 19 24 111 99 365 . . . . . 97 664 272 112 603 384 529 299 46 3009 Average 716 | . 113 . 29 123 140 15 397 . . . . 56 541 694 412 387 598 599 476 117 1457 4334 Influence Increases 20071 | . 446 100 437 721 343 315 910 . 265 . 235 269 1853 380 327 1480 384 1048 363 564 5816 3815 Destroy 0b10 Robot/C 10520 | . 240 80 220 460 180 20 400 . 200 . 180 100 860 160 80 300 200 640 220 220 3120 2640 Destroy 0b10 Robot/NC 620 | . 10 . 15 30 10 105 . . . . 5 . 65 10 25 45 20 20 20 . 105 135 Destroy Leader 1760 | . 74 20 84 132 60 . 80 . 50 . 20 20 66 . . 74 54 106 66 100 326 428 Allied During Kill 1249 | . . . . . . . . . . . . . 604 166 105 367 7 . . . . . Successful Hack 283 | . 36 . . 50 . 19 14 . . . . 16 14 . . . 24 64 . 10 36 . Select Force Hacks 240 | . 60 . 30 . . 150 . . . . . . . . . . . . . . . . Disable Machine 1005 | . 15 . 15 15 . . . . . . . 30 60 30 75 210 . 105 . 180 225 45 Destroy Structure 3024 | . 11 . 13 4 18 21 6 . . . . 58 94 14 42 484 64 68 57 54 1674 342 Advance Influence 350 | . . . . . . . 350 . . . . . . . . . . . . . . . Partial Spotted 30 | . . . 15 . . . . . . . . . . . . . . 15 . . . . Lose Combat Pursuer 990 | . . . 45 30 75 . 60 . 15 . 30 45 90 . . . 15 30 . . 330 225 Influence Decreases 13607 | . 337 171 421 529 335 531 477 373 363 . 235 70 864 886 688 651 849 791 773 1013 882 2368 Entered New Map 5393 | . . 53 19 30 135 155 23 175 19 . . . 102 524 410 209 547 301 413 233 37 2008 Time Decay 7144 | . 337 118 392 459 160 376 334 198 334 . 225 70 542 262 238 342 262 490 350 770 755 130 Search Patrol Dispatched 100 | . . . . . . . 100 . . . . . . . . . . . . . . . Lost Part 490 | . . . 10 40 40 . 20 . 10 . 10 . 20 . . . . . 10 10 90 230 Lost Ally 480 | . . . . . . . . . . . . . 200 100 40 100 40 . . . . . Squads Dispatched 125 | . 6 . 3 6 3 . 6 . . . . . 3 . . 4 5 7 4 . 30 48 Investigation 7 | . 4 . 2 . . . . . . . . . . . . . 1 . . . . . Extermination 22 | . . . . 3 1 . 2 . . . . . . . . 2 . 3 2 . 8 1 Reinforcement 17 | . 2 . 1 3 . . . . . . . . . . . 1 4 . 1 . 5 . Assault 70 | . . . . . . . 1 . . . . . 3 . . 1 . 1 1 . 17 46 Garrison 9 | . . . . . 2 . 3 . . . . . . . . . . 3 . . . 1 Intercept . | . . . . . . . . . . . . . . . . . . . . . . . Searches Triggered 1 | . . . . . . . 1 . . . . . . . . . . . . . . . Construction Impeded 2 | . . . . 2 . . . . . . . . . . . . . . . . . . Haulers Reinforced 2 | . . . . . . . . . . . . . . . . . 2 . . . . . Active Scanning Responses . | . . . . . . . . . . . . . . . . . . . . . . . Cargo Convoy Interrupts . | . . . . . . . . . . . . . . . . . . . . . . . Stealth | -11 -10 -10 -8 -7 -7 -7 -5 -5 -5 -5 -4 -4 -4 -4 -4 -4 -3 -3 -2 -2 -2 -1 --------- Run | Yrd Mat Sub Mat Fac Sto Rec Fac Upp Upp Zhi Pro Fac Ext Cet Arc Hub Res Tes Res Qua Frg Acc Distress Signals 17 | . 3 . 2 . 1 1 . . . . . . 1 2 . 1 1 . . . 1 4 Communications Jammed 46 | . . . . . . . . . . . . . . . . . 1 . 6 . 16 23 Distress Signals 39 | . . . . . . . . . . . . . . . . . 1 . 6 . 9 23 Times Spotted 757 | . 23 6 20 31 12 3 22 . 12 . 13 9 49 10 22 10 16 38 17 12 198 234 Peak Tracking Total 32 | . 6 3 4 3 8 2 5 . 3 . 5 5 10 5 1 5 6 4 3 2 18 32 Tactical Retreats 39 | . . . 3 2 3 . 4 . 1 . 1 3 3 . . . 1 2 . . 7 9 Traps | -11 -10 -10 -8 -7 -7 -7 -5 -5 -5 -5 -4 -4 -4 -4 -4 -4 -3 -3 -2 -2 -2 -1 ------- Run | Yrd Mat Sub Mat Fac Sto Rec Fac Upp Upp Zhi Pro Fac Ext Cet Arc Hub Res Tes Res Qua Frg Acc Traps Triggered 16 | . 1 . . . . . . . . . . . 2 . . 2 . 3 . 2 5 1 Indirectly . | . . . . . . . . . . . . . . . . . . . . . . . Trap Hack Attempts . | . . . . . . . . . . . . . . . . . . . . . . . Triggered . | . . . . . . . . . . . . . . . . . . . . . . . Disarmed . | . . . . . . . . . . . . . . . . . . . . . . . Reprogrammed . | . . . . . . . . . . . . . . . . . . . . . . . Reused . | . . . . . . . . . . . . . . . . . . . . . . . Traps Extracted . | . . . . . . . . . . . . . . . . . . . . . . . Installed . | . . . . . . . . . . . . . . . . . . . . . . . Triggered . | . . . . . . . . . . . . . . . . . . . . . . . Machines | -11 -10 -10 -8 -7 -7 -7 -5 -5 -5 -5 -4 -4 -4 -4 -4 -4 -3 -3 -2 -2 -2 -1 ---------- Run | Yrd Mat Sub Mat Fac Sto Rec Fac Upp Upp Zhi Pro Fac Ext Cet Arc Hub Res Tes Res Qua Frg Acc Machines Disabled 80 | . 1 . 1 1 . . . . . . . 2 4 2 5 14 . 11 . 12 24 3 Max in Single Turn 4 | . 1 . 1 1 . . . . . . . 2 1 1 1 4 . 1 . 1 2 1 Garrison Access 2 | . . . 1 . . . . . . . . . . . . . . . . . 1 . Network Hub 2 | . . . . . . . . . . . . . . . . 2 . . . . . . Machines Repaired . | . . . . . . . . . . . . . . . . . . . . . . . Machines Dismantled . | . . . . . . . . . . . . . . . . . . . . . . . Machines Sabotaged . | . . . . . . . . . . . . . . . . . . . . . . . Overloaded Fab Kills . | . . . . . . . . . . . . . . . . . . . . . . . Hacking | -11 -10 -10 -8 -7 -7 -7 -5 -5 -5 -5 -4 -4 -4 -4 -4 -4 -3 -3 -2 -2 -2 -1 --------- Run | Yrd Mat Sub Mat Fac Sto Rec Fac Upp Upp Zhi Pro Fac Ext Cet Arc Hub Res Tes Res Qua Frg Acc Machines Accessed 78 | . 5 1 4 8 2 12 3 2 2 4 . 5 5 1 . 1 4 6 2 5 6 . Terminals 45 | . 3 . 1 6 2 5 1 . 1 . . 4 5 1 . 1 1 4 2 4 4 . Fabricators 2 | . . . . . . . . . . . . . . . . . 2 . . . . . Repair Stations . | . . . . . . . . . . . . . . . . . . . . . . . Recycling Units 10 | . 2 . 1 . . 6 1 . . . . . . . . . . . . . . . Scanalyzers 8 | . . . 1 1 . . . . . . . 1 . . . . 1 2 . 1 1 . Garrison Access 4 | . . . 1 1 . . 1 . . . . . . . . . . . . . 1 . Total Hacks 173 | . 12 3 7 15 2 24 5 4 2 17 . 12 9 1 . 1 12 19 2 17 9 . Successful 89 | . 7 3 5 5 2 12 2 4 2 17 . 7 2 . . . 3 5 1 5 7 . Failed 82 | . 5 . 1 10 . 12 3 . . . . 5 7 1 . 1 9 14 1 11 2 . Catastrophic 19 | . . . 1 2 . 3 1 . . . . 1 3 1 . 1 1 2 . 3 . . Database Lockouts 2 | . . . 1 . . . . . . . . . . . . . . . . 1 . . Manual 77 | . 12 . 3 7 1 22 . . . . . 3 2 1 . 1 8 6 1 9 1 . Terminals 93 | . 10 . 2 8 2 12 3 . 1 . . 5 9 1 . 1 8 13 2 10 6 . Fabricators 2 | . . . . . . . . . . . . . . . . . 2 . . . . . Repair Stations . | . . . . . . . . . . . . . . . . . . . . . . . Recycling Units 14 | . 2 . 1 . . 10 1 . . . . . . . . . . . . . . . Scanalyzers 32 | . . . 3 5 . . . . . . . 7 . . . . 2 6 . 7 2 . Garrison Access 5 | . . . 1 2 . . 1 . . . . . . . . . . . . . 1 . Terminal Hacks 49 | . 4 3 1 1 2 3 1 4 2 17 . 2 2 . . . . 2 1 1 3 . Record 13 | . . 3 . . . . . 3 1 5 . . . . . . . . . . 1 . Part Schematic 6 | . 1 . . . . 1 . . . 4 . . . . . . . . . . . . Robot Analysis 8 | . 2 . 1 . . . . . . 4 . . . . . . . 1 . . . . Prototype ID Bank 4 | . . . . . . . . . . 4 . . . . . . . . . . . . Open Door 8 | . . . . . 2 . . 1 1 . . 1 2 . . . . . 1 . . . Branch Access Points 3 | . . . . 1 . . . . . . . 1 . . . . . 1 . . . . Recycling Unit Index 1 | . 1 . . . . . . . . . . . . . . . . . . . . . Alert Level 1 | . . . . . . . . . . . . . . . . . . . . 1 . . Zone Layout 2 | . . . . . . . 1 . . . . . . . . . . . . . 1 . Proto ID Catalog 1 | . . . . . . . . . . . . . . . . . . . . . 1 . Release Object 2 | . . . . . . 2 . . . . . . . . . . . . . . . . Fabricator Hacks 1 | . . . . . . . . . . . . . . . . . 1 . . . . . Build 1 | . . . . . . . . . . . . . . . . . 1 . . . . . Repair Station Hacks . | . . . . . . . . . . . . . . . . . . . . . . . Recycling Unit Hacks 1 | . . . . . . . 1 . . . . . . . . . . . . . . . Retrieve Components 1 | . . . . . . . 1 . . . . . . . . . . . . . . . Scanalyzer 18 | . . . 2 3 . . . . . . . 5 . . . . 1 2 . 3 2 . Insert Component 2 | . . . . . . . . . . . . . . . . . . . . 2 . . Retrieve Study 16 | . . . 2 3 . . . . . . . 5 . . . . 1 2 . 1 2 . Garrison Access Hacks 2 | . . . 1 . . . . . . . . . . . . . . . . . 1 . Seal Access 2 | . . . 1 . . . . . . . . . . . . . . . . . 1 . Unauthorized Hacks 18 | . 3 . 1 1 . 9 . . . . . . . . . . 1 1 . 1 1 . Terminals 8 | . 1 . . 1 . 2 . . . . . . . . . . 1 1 . 1 1 . Botnet 8 | . 1 . . 1 . 2 . . . . . . . . . . 1 1 . 1 1 . Fabricators . | . . . . . . . . . . . . . . . . . . . . . . . Repair Stations . | . . . . . . . . . . . . . . . . . . . . . . . Recycling Units 10 | . 2 . 1 . . 7 . . . . . . . . . . . . . . . . Reject 1 | . . . . . . 1 . . . . . . . . . . . . . . . . Mask 1 | . . . . . . 1 . . . . . . . . . . . . . . . . Tunnel 8 | . 2 . 1 . . 5 . . . . . . . . . . . . . . . . Scanalyzers . | . . . . . . . . . . . . . . . . . . . . . . . Garrison Access . | . . . . . . . . . . . . . . . . . . . . . . . Data Cores Recovered 1 | . . . . 1 . . . . . . . . . . . . . . . . . . Used 1 | . . . . 1 . . . . . . . . . . . . . . . . . . Hacking Detections 47 | . 3 . 1 7 1 6 3 . 1 . . 4 5 1 . 1 3 5 1 4 1 . Full Trace Events 3 | . 1 . . . . 2 . . . . . . . . . . . . . . . . Feedback Events . | . . . . . . . . . . . . . . . . . . . . . . . Feedback Blocked . | . . . . . . . . . . . . . . . . . . . . . . . Robot Schematics Acquired 1 | . . . . . . . . . . . . . . . . . . . . . 1 . Robots Built . | . . . . . . . . . . . . . . . . . . . . . . . Authchips . | . . . . . . . . . . . . . . . . . . . . . . . Time . | . . . . . . . . . . . . . . . . . . . . . . . Total Robot Build Rating . | . . . . . . . . . . . . . . . . . . . . . . . Part Schematics Acquired 8 | . 1 . . . . 1 . . . 4 . . . . . . . . . . 2 . Parts Built 1 | . . . . . . . . . . . . . . . . . 1 . . . . . Authchips . | . . . . . . . . . . . . . . . . . . . . . . . Time 102 | . . . . . . . . . . . . . . . . . 102 . . . . . Total Part Build Rating 8 | . . . . . . . . . . . . . . . . . 8 . . . . . Part Studies Acquired 16 | . . . 2 3 . . . . . . . 5 . . . . 1 2 . 1 2 . Parts Repaired . | . . . . . . . . . . . . . . . . . . . . . . . Time . | . . . . . . . . . . . . . . . . . . . . . . . Parts Recycled . | . . . . . . . . . . . . . . . . . . . . . . . Recycled Matter . | . . . . . . . . . . . . . . . . . . . . . . . Retrieved Matter . | . . . . . . . . . . . . . . . . . . . . . . . Retrieved Components 2 | . . . . . . . 2 . . . . . . . . . . . . . . . Parts Scanalyzed . | . . . . . . . . . . . . . . . . . . . . . . . Part Schematics Acquired . | . . . . . . . . . . . . . . . . . . . . . . . Parts Damaged . | . . . . . . . . . . . . . . . . . . . . . . . Bothacking | -11 -10 -10 -8 -7 -7 -7 -5 -5 -5 -5 -4 -4 -4 -4 -4 -4 -3 -3 -2 -2 -2 -1 ------------ Run | Yrd Mat Sub Mat Fac Sto Rec Fac Upp Upp Zhi Pro Fac Ext Cet Arc Hub Res Tes Res Qua Frg Acc Used RIF Installer . | . . . . . . . . . . . . . . . . . . . . . . . Robots Hacked . | . . . . . . . . . . . . . . . . . . . . . . . Non-combat . | . . . . . . . . . . . . . . . . . . . . . . . Combat . | . . . . . . . . . . . . . . . . . . . . . . . Robot Hacks Applied . | . . . . . . . . . . . . . . . . . . . . . . . Relay Couplers Released 1 | . . . . . . . . . . . . . . . . . . . . . 1 . Machine Destruction 1 | . . . . . . . . . . . . . . . . . . . . . 1 . Fabnet Peak Effective % . | . . . . . . . . . . . . . . . . . . . . . . . Robots Rewired 17 | . . . . . . . . . . . . . 17 . . . . . . . . . Allies Hacked . | . . . . . . . . . . . . . . . . . . . . . . . Hacks Repelled . | . . . . . . . . . . . . . . . . . . . . . . . Allies | -11 -10 -10 -8 -7 -7 -7 -5 -5 -5 -5 -4 -4 -4 -4 -4 -4 -3 -3 -2 -2 -2 -1 -------- Run | Yrd Mat Sub Mat Fac Sto Rec Fac Upp Upp Zhi Pro Fac Ext Cet Arc Hub Res Tes Res Qua Frg Acc Total Allies 31 | . . . . . . . . . . . . . 26 5 . . . . . . . . Largest Group 16 | . . . . . . . . . . . . . 16 15 14 11 2 . . . . . Highest-Rated Group 1048 | . . . . . . . . . . . . . 816 1048 1002 711 192 . . . . . Highest-Rated Ally 159 | . . . . . . . . . . . . . 159 159 152 96 96 . . . . . Total Orders 4 | . . . . . . . . . . . . . . 2 2 . . . . . . . STAY 2 | . . . . . . . . . . . . . . 1 1 . . . . . . . FOLLOW 2 | . . . . . . . . . . . . . . 1 1 . . . . . . . Ally Attacks 260 | . . . . . . . . . . . . . 123 47 15 69 6 . . . . . Total Damage 7454 | . . . . . . . . . . . . . 3113 1118 379 2618 226 . . . . . Kills 39 | . . . . . . . . . . . . . 16 5 1 16 1 . . . . . Allies Corrupted 2 | . . . . . . . . . . . . . 1 . . 1 . . . . . . Allies Melted 1 | . . . . . . . . . . . . . 1 . . . . . . . . . Intel | -11 -10 -10 -8 -7 -7 -7 -5 -5 -5 -5 -4 -4 -4 -4 -4 -4 -3 -3 -2 -2 -2 -1 ------- Run | Yrd Mat Sub Mat Fac Sto Rec Fac Upp Upp Zhi Pro Fac Ext Cet Arc Hub Res Tes Res Qua Frg Acc Active Infowar (turns) 15195 | . . . . 1361 218 . 448 412 756 305 451 235 1177 . 51 617 455 1042 706 1295 4178 1488 Optics 3699 | . . . . . . . . . . . . . . . . . . . . . 2221 1478 Sensors 10775 | . . . . 1358 163 . 448 412 756 305 451 235 1134 . 51 599 446 1041 673 1294 1399 10 Structural 578 | . . . . . . . . . . . . 119 . . . 51 . . 140 . 268 . Traps 472 | . . . . 257 215 . . . . . . . . . . . . . . . . . Cloaking 1027 | . . . . . . . . . . . . . . . . . . . . . 367 660 Jamming 4196 | . . . . . . . . . . . . . 43 . . 499 9 230 236 13 2507 659 ECM 1 | . . . . . . . . . . . . . . . . . . . . . 1 . Robot Analysis Total 8 | . 2 . 1 . . . . . . 4 . . . . . . . 1 . . . . Derelict Logs Recovered 3 | . . . . . . . . . 2 . 1 . . . . . . . . . . . Drone Launches . | . . . . . . . . . . . . . . . . . . . . . . . Drone Recoveries . | . . . . . . . . . . . . . . . . . . . . . . . Exploration | -11 -10 -10 -8 -7 -7 -7 -5 -5 -5 -5 -4 -4 -4 -4 -4 -4 -3 -3 -2 -2 -2 -1 ------------- Run | Yrd Mat Sub Mat Fac Sto Rec Fac Upp Upp Zhi Pro Fac Ext Cet Arc Hub Res Tes Res Qua Frg Acc Turns Passed 29242 | 69 885 1113 1133 1724 328 3946 753 412 1020 311 560 330 1554 579 505 773 579 1289 783 4392 4495 1709 Spaces Moved 17084 | 39 389 442 520 807 116 1988 484 482 988 166 618 379 1085 379 128 593 477 920 547 2705 2308 524 Core 5 | 5 . . . . . . . . . . . . . . . . . . . . . . Treads 9203 | 34 389 442 520 807 116 1215 271 . . . 443 379 1085 245 128 593 80 . . 1540 916 . Legs 4574 | . . . . . . 257 213 482 988 166 175 . . 134 . . 397 920 547 295 . . Wheels 516 | . . . . . . 516 . . . . . . . . . . . . . . . . Hover 1177 | . . . . . . . . . . . . . . . . . . . . . 1177 . Flight 1609 | . . . . . . . . . . . . . . . . . . . . 870 215 524 Fastest Speed 50 | 50 160 240 160 160 160 63 83 83 83 74 74 74 74 104 104 104 90 77 77 77 66 133 Average Speed 116 | 145 175 240 172 162 161 118 83 83 83 81 74 74 80 118 104 104 92 85 77 133 121 133 Slowest Speed 240 | 160 240 240 240 220 213 240 83 83 83 83 74 74 136 136 104 104 104 90 77 221 221 133 Overloaded Moves . | . . . . . . . . . . . . . . . . . . . . . . . Propulsion Burnouts . | . . . . . . . . . . . . . . . . . . . . . . . Robots Hopped 3 | . . . . . . . . . . . . . . . . . . . . . 1 2 Potential Cave-ins 14 | . . . . . . . . . . . . . . . . . . . . . 14 . Cave-ins Triggered 1 | . . . . . . . . . . . . . . . . . . . . . 1 . Teleports 2 | . . . . . . . . . . . . . . . . . . . . . 1 1 Exploration Rate (%) 50 | 4 67 30 38 33 30 96 8 68 94 61 69 11 96 76 81 37 13 79 15 93 39 20 Regions Visited 22 Branch Regions 14 Pre-discovered Areas 14 | . 2 . 1 . . 5 . . 2 3 1 . . . . . . . . . . . Known Exits Taken 18 | . . . . 1 1 1 1 1 1 1 1 1 1 1 1 1 1 1 1 1 1 . Unknown Exits Taken 4 | 1 1 1 1 . . . . . . . . . . . . . . . . . . . Scrap Searched 14 | . . 8 . . . . . . 3 . 3 . . . . . . . . . . . Spaces Dug 141 | . 4 . . 2 . 3 . . 3 . . 5 . . . 9 10 9 9 13 61 13 Terrain Destroyed 1176 | . 4 . 9 2 17 17 . . 24 . 6 36 31 3 23 395 32 38 18 15 288 218 Melee 2 | . . . . 2 . . . . . . . . . . . . . . . . . . Projectile 604 | . 4 . 9 . 17 17 . . 24 . 6 6 31 3 23 42 32 38 18 15 274 45 AOE 570 | . . . . . . . . . . . . 30 . . . 353 . . . . 14 173 Terrain Rammed . | . . . . . . . . . . . . . . . . . . . . . . . Walls Destroyed . | . . . . . . . . . . . . . . . . . . . . . . . Machines Disabled . | . . . . . . . . . . . . . . . . . . . . . . . Actions | -11 -10 -10 -8 -7 -7 -7 -5 -5 -5 -5 -4 -4 -4 -4 -4 -4 -3 -3 -2 -2 -2 -1 --------- Run | Yrd Mat Sub Mat Fac Sto Rec Fac Upp Upp Zhi Pro Fac Ext Cet Arc Hub Res Tes Res Qua Frg Acc Total 24969 | 48 506 461 699 1064 203 3563 788 493 1155 342 698 416 1656 485 464 705 580 1302 858 3471 3669 1343 Wait 5151 | . 51 . 75 121 24 1383 207 12 122 159 39 13 243 66 290 52 48 190 221 577 667 591 Move 17053 | 38 388 441 519 806 115 1987 483 481 987 165 617 378 1084 378 127 592 476 919 546 2704 2302 520 Hop 3 | . . . . . . . . . . . . . . . . . . . . . 1 2 Pick Up 322 | 4 10 3 27 14 6 69 17 . 3 2 9 6 4 8 3 2 4 15 10 44 54 8 Fast Attach 82 | 6 1 . 3 6 9 3 2 . 1 6 . . 1 . 2 3 3 3 . 10 14 9 Attach 59 | . . . 10 3 2 . 2 . . . 1 2 2 . 1 . . 4 3 7 14 8 Detach 18 | . . . 2 . . . . . . . . . 1 . . 2 . 3 . 2 5 3 Swap 332 | . 7 . 9 29 12 1 12 . 10 . 5 5 23 2 2 7 11 46 27 16 103 5 Drop 341 | . 7 . 23 17 13 81 16 . 3 10 5 2 5 5 4 5 7 16 6 53 56 7 Fire 1398 | . 41 17 30 59 22 38 49 . 29 . 22 10 103 26 35 42 31 106 45 57 446 190 Melee 11 | . . . 1 9 . . . . . . . . . . . . . . . 1 . . Ram . | . . . . . . . . . . . . . . . . . . . . . . . Kick . | . . . . . . . . . . . . . . . . . . . . . . . Crush 1 | . 1 . . . . . . . . . . . . . . . . . . . . . Escape Stasis 7 | . . . . . . . . . . . . . . . . . . . . . 7 . Rewire 191 | . . . . . . 1 . . . . . . 190 . . . . . . . . . Trap . | . . . . . . . . . . . . . . . . . . . . . . . Miscellaneous . | . . . . . . . . . . . . . . . . . . . . . . . Route ------- -11/Scrapyard -10/Materials (discovered 4 exits: [*Mat x2] / [*Min] / *Sub) -10/Subcaves (discovered 2 exits: *Mat x2) -8/Materials -7/Factory (discovered 4 exits: *Sto x2 / *Low x2) -7/Storage -7/Recycling -5/Factory -5/Upper Caves -5/Upper Caves (discovered 2 exits: *Fac / *Zhi) -5/Zhirov -4/Proximity Caves -4/Factory (discovered 5 exits: Upp x2 / *Ext x2 / Arm) -4/Extension (discovered 2 exits: *Res / *Cet) -4/Cetus (discovered 2 exits: *Res / *Arc) -4/Archives (discovered 3 exits: *Res / *Hub x2) -4/Hub_04(d) -3/Research -3/Testing -2/Research (discovered 2 exits: *Qua x2) -2/Quarantine (discovered 3 exits: *Acc / *Sec / *Frg) -2/Protoforge -1/Access History --------- Turn | Location | Event 52 | -11/Scrapyard | Discovered new exit (range 12) 70 | -11/Scrapyard | Entered Materials 319 | -10/Materials | Build established: Mutant 405 | -10/Materials | Discovered new exit (range 13) 633 | -10/Materials | Discovered new exit (range 8) 851 | -10/Materials | Discovered new exit (range 5) 936 | -10/Materials | Discovered new exit (range 6) 955 | -10/Materials | Entered Subcaves 991 | -10/Subcaves | Discovered new exit (range 15) 1075 | -10/Subcaves | A swath of the cavern ceiling suddenly collapsed 1623 | -10/Subcaves | Discovered new exit (range 12) 1630 | -10/Subcaves | Visited Clippyterm 1637 | -10/Subcaves | Learned Research machine intel 2013 | -10/Subcaves | Core integrity fell below 50% 2068 | -10/Subcaves | Entered Materials 2068 | -8/Materials | Evolved 4 slots: Propulsion x2, Utility x1, Weapon x1 2420 | -8/Materials | Build established: Tank 2956 | -8/Materials | Central database locked down 3163 | -8/Materials | Discovered new exit (range 10) 3201 | -8/Materials | Entered Factory 3201 | -7/Factory | Evolved 2 slots: Propulsion x1, Utility x1 3452 | -7/Factory | Discovered new exit (range 4) 3457 | -7/Factory | Identified exit to Lower Caves 4431 | -7/Factory | Build established: Scavenger-Skirmisher 4676 | -7/Factory | Identified exit to Storage 4870 | -7/Factory | Lost 3 parts (1p2n) 4925 | -7/Factory | Entered Storage 5136 | -7/Storage | Garrison activated, responded to threat 5238 | -7/Storage | Lost 4 parts (1p2n1u) 5246 | -7/Storage | Used back door to open Recycling access 5246 | -7/Storage | Discovered new exit (range 5) 5251 | -7/Storage | Identified exit to Recycling 5253 | -7/Storage | Entered Recycling 5836 | -7/Recycling | Build established: Scavenger-Tank 6387 | -7/Recycling | Discovered new exit (range 13) 6603 | -7/Recycling | Entered Scraplab 6610 | -7/Recycling | Found Prototype Device 6610 | -7/Recycling | Identified Scrap Engine 6631 | -7/Recycling | Build established: Scavenger-Gunner 7022 | -7/Recycling | Build established: Mutant 7577 | -7/Recycling | Build established: Construct 9198 | -7/Recycling | Identified exit to Factory 9199 | -7/Recycling | Entered Factory 9199 | -5/Factory | Evolved 4 slots: Power x1, Propulsion x1, Utility x2 9296 | -5/Factory | Discovered new exit (range 5) 9309 | -5/Factory | Identified exit to Upper Caves 9469 | -5/Factory | Garrison activated, responded to threat 9499 | -5/Factory | Search patrols dispatched 9799 | -5/Factory | First assault squad dispatched 9952 | -5/Factory | Entered Upper Caves 10234 | -5/Upper Caves | Entered an active Warlord outpost 10246 | -5/Upper Caves | Learned Research garrison access intel 10246 | -5/Upper Caves | Learned location of 1 exit from Factory 10346 | -5/Upper Caves | Discovered new exit (range 6) 10350 | -5/Upper Caves | Identified exit to Upper Caves 10364 | -5/Upper Caves | Entered another Upper Caves area 10365 | -5/Upper Caves | Identified exit to Factory 10610 | -5/Upper Caves | Spotted B-75 Beast 11060 | -5/Upper Caves | Discovered new exit (range 15) 11070 | -5/Upper Caves | Identified exit to Zhirov 11191 | -5/Upper Caves | Encountered a Warlord checkpoint 11226 | -5/Upper Caves | Attracted the attention of an 0b10 checkpoint 11384 | -5/Upper Caves | Entered Zhirov 11384 | -5/Zhirov | Discovered new exit (range 3) 11399 | -5/Zhirov | Met Zhirov 11415 | -5/Zhirov | Learned location of Testing (-3) 11415 | -5/Zhirov | Learned location of Command (-1) 11428 | -5/Zhirov | Zhirov requested help retrieving the SGEMP Prototype 11441 | -5/Zhirov | Found Alien Artifact 11441 | -5/Zhirov | Identified Integrated Reactor 11441 | -5/Zhirov | Installed Integrated Reactor, increased core energy generation (+10) 11598 | -5/Zhirov | Found Alien Artifact 11694 | -5/Zhirov | Identified exit to Proximity Caves 11695 | -5/Zhirov | Entered Proximity Caves 12255 | -4/Proximity Caves | Entered Factory 12255 | -4/Factory | Evolved 2 slots: Power x1, Utility x1 12256 | -4/Factory | Identified exit to Extension 12417 | -4/Factory | Identified exit to Upper Caves 12417 | -4/Factory | Identified exit to Armory 12585 | -4/Factory | Entered Extension 12897 | -4/Extension | Destroyed 8 combat bots 13046 | -4/Extension | Rescued a captive Derelict 13046 | -4/Extension | Rescued a captive Derelict 13071 | -4/Extension | Rescued a captive Derelict 13072 | -4/Extension | Rescued a captive Derelict 13213 | -4/Extension | Rescued a captive Derelict 13215 | -4/Extension | Rescued a captive Derelict 13228 | -4/Extension | Rescued a captive Derelict 13228 | -4/Extension | Rescued a captive Derelict 13317 | -4/Extension | Build established: Commander-Construct 13366 | -4/Extension | Spotted B-86 Titan 13368 | -4/Extension | Destroyed B-86 Titan 13382 | -4/Extension | Spotted B-86 Titan 13400 | -4/Extension | Destroyed B-86 Titan 13428 | -4/Extension | Lost 4 allies 13585 | -4/Extension | First assault squad dispatched 13694 | -4/Extension | Lost 3 allies 13919 | -4/Extension | Rescued A7 14083 | -4/Extension | Discovered new exit (range 16) 14085 | -4/Extension | Discovered new exit (range 15) 14102 | -4/Extension | Identified exit to Cetus 14139 | -4/Extension | Entered Cetus 14139 | -4/Cetus | Accompanied by 14 allies (A7) 14144 | -4/Cetus | Acquired a Cetus Manufacturing Module code from A7 14162 | -4/Cetus | Spotted Cetus Guard 14171 | -4/Cetus | Spotted Cetus Guard 14171 | -4/Cetus | Spotted Cetus Guard 14172 | -4/Cetus | Spotted Cetus Guard 14173 | -4/Cetus | Destroyed Cetus Guard 14178 | -4/Cetus | Allies destroyed Cetus Guard 14193 | -4/Cetus | Allies destroyed Cetus Guard 14194 | -4/Cetus | Allies destroyed Cetus Guard 14218 | -4/Cetus | Lost 4 allies 14307 | -4/Cetus | Started Cetus Manufacturing Module 14331 | -4/Cetus | Escorted A7 to Cetus Mainframe 14332 | -4/Cetus | Manufactured an Enhanced Grunt 14357 | -4/Cetus | Manufactured an Enhanced Grunt 14382 | -4/Cetus | Manufactured an Enhanced Grunt 14407 | -4/Cetus | Manufactured an Enhanced Grunt 14432 | -4/Cetus | Manufactured an Enhanced Grunt 14453 | -4/Cetus | Discovered new exit (range 16) 14473 | -4/Cetus | Spotted Cetus Guard 14473 | -4/Cetus | Spotted Cetus Guard 14475 | -4/Cetus | Spotted Cetus Guard 14476 | -4/Cetus | Destroyed Cetus Guard 14478 | -4/Cetus | Destroyed Cetus Guard 14482 | -4/Cetus | Destroyed Cetus Guard 14486 | -4/Cetus | Allies destroyed Cetus Guard 14499 | -4/Cetus | Discovered new exit (range 15) 14504 | -4/Cetus | Met Revision 17 14686 | -4/Cetus | Identified exit to Archives 14718 | -4/Cetus | Entered Archives 14718 | -4/Archives | Accompanied by 14 allies (A7) 14726 | -4/Archives | Received a hacking code to weaken MAIN.C 14765 | -4/Archives | Found Prototype Device 14765 | -4/Archives | Identified Exp. Thermal Shield 15071 | -4/Archives | Discovered new exit (range 16) 15095 | -4/Archives | Discovered new exit (range 16) 15181 | -4/Archives | Discovered new exit (range 16) 15198 | -4/Archives | Identified exit to Hub_04(d) 15223 | -4/Archives | Entered Hub_04(d) 15223 | -4/Hub_04(d) | Accompanied by 11 allies 15345 | -4/Hub_04(d) | Discovered new exit (range 13) 15391 | -4/Hub_04(d) | Identified exit to Research 15559 | -4/Hub_04(d) | Network Hub disabled 15861 | -4/Hub_04(d) | Spotted Lightning 15869 | -4/Hub_04(d) | Spotted Lightning 15871 | -4/Hub_04(d) | Allies destroyed Lightning 15872 | -4/Hub_04(d) | Spotted Lightning 15874 | -4/Hub_04(d) | Destroyed Lightning 15876 | -4/Hub_04(d) | System corruption reached 10% 15876 | -4/Hub_04(d) | Destroyed Lightning 15889 | -4/Hub_04(d) | Found Prototype Device 15889 | -4/Hub_04(d) | Identified Exp. EM Shield 15892 | -4/Hub_04(d) | Found Prototype Processor 15892 | -4/Hub_04(d) | Identified Exp. Targeting Computer 15950 | -4/Hub_04(d) | Network Hub disabled 15973 | -4/Hub_04(d) | First assault squad dispatched 15996 | -4/Hub_04(d) | Entered Research 15996 | -3/Research | Accompanied by 2 allies 15996 | -3/Research | Evolved 2 slots: Weapon x2 15997 | -3/Research | Loaded intel: 119 machine locations 15998 | -3/Research | Loaded intel: 4 garrison access locations 16196 | -3/Research | Revision forces began assault on 0b10 16305 | -3/Research | Met up with Revision 17++ 16306 | -3/Research | Allied Derelicts emerged from ambush trap array 16331 | -3/Research | Build established: Construct 16374 | -3/Research | Discovered new exit (range 11) 16385 | -3/Research | Identified exit to Testing 16499 | -3/Research | Fabricated Cld. Impulse Thruster (x1) 16520 | -3/Research | Found Fusion Bomb Launcher 16575 | -3/Research | Entered Testing 16682 | -3/Testing | Found Prototype Processor 16723 | -3/Testing | Identified Exp. Target Analyzer 17082 | -3/Testing | Found Prototype Device 17101 | -3/Testing | Identified Exp. Hardlight Generator 17115 | -3/Testing | Identified Transdimensional Reconstructor 17207 | -3/Testing | Garrison activated, responded to threat 17325 | -3/Testing | First assault squad dispatched 17472 | -3/Testing | Spotted PH-2OR18IKWBH 17477 | -3/Testing | Destroyed PH-2OR18IKWBH 17607 | -3/Testing | Found Prototype Energy Cannon 17607 | -3/Testing | Identified Potential Cannon 17727 | -3/Testing | Discovered new exit (range 11) 17743 | -3/Testing | Identified exit to Research 17757 | -3/Testing | Spotted PP-37BCXRXMLH 17864 | -3/Testing | Entered Research 17864 | -2/Research | Evolved 2 slots: Utility x2 18401 | -2/Research | Found Prototype Processor 18406 | -2/Research | Identified Spectral Analyzer 18473 | -2/Research | Discovered new exit (range 12) 18614 | -2/Research | First assault squad dispatched 18642 | -2/Research | Discovered new exit (range 9) 18646 | -2/Research | Identified exit to Quarantine 18647 | -2/Research | Entered Quarantine 18820 | -2/Quarantine | Found Alien Slashing Weapon 18820 | -2/Quarantine | Identified Sigix Broadsword 18913 | -2/Quarantine | Cryocooling Duct disabled 18925 | -2/Quarantine | Cryocooling Duct disabled 18928 | -2/Quarantine | Ambient heat levels rising (+20) 18928 | -2/Quarantine | Non-combat units ordered to evacuate 18940 | -2/Quarantine | Ambient heat levels rising (+20) 18940 | -2/Quarantine | Combat units ordered to evacuate 18998 | -2/Quarantine | Found Alien Impact Weapon 18998 | -2/Quarantine | Identified Core Stripper 19040 | -2/Quarantine | Quarantine Guard activated 19232 | -2/Quarantine | Spotted Quarantine Guard 19234 | -2/Quarantine | Destroyed Quarantine Guard 19257 | -2/Quarantine | Spotted Quarantine Guard 19264 | -2/Quarantine | Destroyed Quarantine Guard 19340 | -2/Quarantine | Spotted Quarantine Guard 19360 | -2/Quarantine | Destroyed Quarantine Guard 19424 | -2/Quarantine | Spotted Quarantine Guard 19439 | -2/Quarantine | Destroyed Quarantine Guard 19511 | -2/Quarantine | Discovered new exit (range 13) 19511 | -2/Quarantine | Spotted Quarantine Guard 19515 | -2/Quarantine | Destroyed Quarantine Guard 19531 | -2/Quarantine | Identified exit to Access 19573 | -2/Quarantine | Found Alien Artifact 19573 | -2/Quarantine | Identified Phase Redirector 19579 | -2/Quarantine | Spotted Quarantine Guard 19599 | -2/Quarantine | Destroyed Quarantine Guard 19607 | -2/Quarantine | Spotted Quarantine Guard 19642 | -2/Quarantine | Destroyed Quarantine Guard 19655 | -2/Quarantine | Found Alien Artifact 19655 | -2/Quarantine | Identified Phase Armor 19890 | -2/Quarantine | Spotted Fortress 19893 | -2/Quarantine | Destroyed Fortress 19976 | -2/Quarantine | Found Prototype Device 19978 | -2/Quarantine | Found Prototype Device 19984 | -2/Quarantine | Identified Exp. Force Field 20020 | -2/Quarantine | Identified Thermal Barrier 20029 | -2/Quarantine | Found Prototype Protection 20034 | -2/Quarantine | Identified Centrium Heavy Armor Plating 20195 | -2/Quarantine | Spotted Quarantine Guard 20206 | -2/Quarantine | Destroyed Quarantine Guard 20388 | -2/Quarantine | Found Alien Artifact 20497 | -2/Quarantine | Identified Subatomic Replicator 20819 | -2/Quarantine | Spotted Quarantine Guard 21413 | -2/Quarantine | Found Exp. EM Shield 21930 | -2/Quarantine | Found Transdimensional Reconstructor 21936 | -2/Quarantine | Found Transdimensional Reconstructor 21951 | -2/Quarantine | Found Alien Artifact 21954 | -2/Quarantine | Found Alien Artifact 22083 | -2/Quarantine | Central database locked down 22083 | -2/Quarantine | Identified Dimensional Node Initializer (x2) 23002 | -2/Quarantine | Discovered new exit (range 5) 23002 | -2/Quarantine | Discovered new exit (range 6) 23002 | -2/Quarantine | Spotted Quarantine Guard 23002 | -2/Quarantine | Spotted Quarantine Guard 23004 | -2/Quarantine | Destroyed Quarantine Guard 23005 | -2/Quarantine | Destroyed Quarantine Guard 23011 | -2/Quarantine | Identified exit to Section 7 23019 | -2/Quarantine | Identified exit to Protoforge 23039 | -2/Quarantine | Entered Protoforge 23342 | -2/Protoforge | Superfortress began startup sequence 23387 | -2/Protoforge | Spotted Hotshot 23387 | -2/Protoforge | Spotted Hotshot 23387 | -2/Protoforge | Spotted Hotshot 23387 | -2/Protoforge | Spotted Hotshot 23402 | -2/Protoforge | Destroyed Hotshot 23433 | -2/Protoforge | Destroyed Hotshot 23445 | -2/Protoforge | Destroyed Hotshot 23450 | -2/Protoforge | Destroyed Hotshot 23595 | -2/Protoforge | Discovered exit to Access (range 9) 23659 | -2/Protoforge | Spotted Overlord 23671 | -2/Protoforge | Destroyed Overlord 23734 | -2/Protoforge | Initialized slip node 23774 | -2/Protoforge | Found Prototype Device 23777 | -2/Protoforge | Found Prototype Device 23780 | -2/Protoforge | Found Exp. EM Shield 23782 | -2/Protoforge | Identified Exp. Weapon Cycler 23788 | -2/Protoforge | Identified Adv. Kinecellerator 23795 | -2/Protoforge | Found Prototype Device 23802 | -2/Protoforge | Identified Exp. Transmission Jammer 23851 | -2/Protoforge | Found Exp. Targeting Computer 24161 | -2/Protoforge | Build established: Scavenger-Construct 24260 | -2/Protoforge | Found Prototype Launcher 24269 | -2/Protoforge | Identified Cep. Concussive Dispersal Blaster 24288 | -2/Protoforge | Additional patrols dispatched to research labs 24349 | -2/Protoforge | Crushed by falling debris 24398 | -2/Protoforge | Spotted Immortal 24404 | -2/Protoforge | Spotted Immortal 24408 | -2/Protoforge | Spotted Immortal 24410 | -2/Protoforge | Destroyed Immortal 24425 | -2/Protoforge | Destroyed Immortal 24432 | -2/Protoforge | Destroyed Immortal 24441 | -2/Protoforge | Found Prototype Processor 24451 | -2/Protoforge | Spotted Immortal 24457 | -2/Protoforge | Spotted Immortal 24459 | -2/Protoforge | Spotted Immortal 24470 | -2/Protoforge | Destroyed Immortal 24476 | -2/Protoforge | Destroyed Immortal 24492 | -2/Protoforge | Found Prototype Device 24501 | -2/Protoforge | Identified Exp. Cloaking Device 24509 | -2/Protoforge | Identified Exp. Melee Analysis Suite 24526 | -2/Protoforge | Destroyed Immortal 24610 | -2/Protoforge | Found Prototype Device 24610 | -2/Protoforge | Identified Crosscalibrator 24638 | -2/Protoforge | Spotted Immortal 24644 | -2/Protoforge | Spotted Decapitator 24644 | -2/Protoforge | Spotted Decapitator 24644 | -2/Protoforge | Spotted Decapitator 24644 | -2/Protoforge | Spotted Decapitator 24669 | -2/Protoforge | Destroyed Immortal 24820 | -2/Protoforge | Found Prototype Ballistic Cannon 24829 | -2/Protoforge | Identified Cep. Helical Railcannon 25052 | -2/Protoforge | Destroyed Decapitator 25057 | -2/Protoforge | Destroyed Decapitator 25061 | -2/Protoforge | Destroyed Decapitator 25067 | -2/Protoforge | Destroyed Decapitator 25113 | -2/Protoforge | Build established: Construct 25162 | -2/Protoforge | Spotted V666-q 25181 | -2/Protoforge | Found Cep. Antigrav Storage Unit 25216 | -2/Protoforge | Found Faulty Cep. Matter Streamer 25218 | -2/Protoforge | Found Faulty Cep. Matter Streamer 25220 | -2/Protoforge | Found Faulty Cep. Matter Streamer 25247 | -2/Protoforge | Found Cep. Combat Aerolev Unit 25281 | -2/Protoforge | Destroyed V666-q 25289 | -2/Protoforge | First assault squad dispatched 25300 | -2/Protoforge | Found Spectral Analyzer 25303 | -2/Protoforge | Found Prototype Processor 25315 | -2/Protoforge | Identified Exp. Armor Integrity Analyzer 25376 | -2/Protoforge | Spotted Decapitator 25377 | -2/Protoforge | Spotted Decapitator 25377 | -2/Protoforge | Spotted Decapitator 25378 | -2/Protoforge | Spotted Decapitator 25380 | -2/Protoforge | Destroyed Decapitator 25380 | -2/Protoforge | Destroyed Decapitator 25381 | -2/Protoforge | Destroyed Decapitator 25383 | -2/Protoforge | Destroyed Decapitator 25397 | -2/Protoforge | Found Prototype Flight Unit 25400 | -2/Protoforge | Spotted V572-x 25400 | -2/Protoforge | Spotted V938-x 25478 | -2/Protoforge | Spotted Decapitator 25479 | -2/Protoforge | Spotted Decapitator 25479 | -2/Protoforge | Spotted Decapitator 25479 | -2/Protoforge | Spotted V497-w 25519 | -2/Protoforge | Identified Cep. Fieldthrust Drive 25561 | -2/Protoforge | Spotted V826-d 25561 | -2/Protoforge | Spotted V610-u 25574 | -2/Protoforge | Spotted V348-i 25598 | -2/Protoforge | Spotted Decapitator 25598 | -2/Protoforge | Spotted Decapitator 25598 | -2/Protoforge | Spotted Decapitator 25598 | -2/Protoforge | Spotted Decapitator 25607 | -2/Protoforge | Destroyed Decapitator 25611 | -2/Protoforge | Destroyed Decapitator 25615 | -2/Protoforge | Destroyed Decapitator 25617 | -2/Protoforge | Destroyed Decapitator 25657 | -2/Protoforge | Found Prototype Launcher 25658 | -2/Protoforge | Identified Cep. Rapid Grenade Launcher 25716 | -2/Protoforge | Spotted V571-c 25716 | -2/Protoforge | Spotted V636-t 25721 | -2/Protoforge | Build established: Scavenger-Construct 25721 | -2/Protoforge | Spotted Immortal 25721 | -2/Protoforge | Spotted Immortal 25791 | -2/Protoforge | Found Cep. Reaction Jets 25794 | -2/Protoforge | Found Faulty Cep. Energy Mantle 25809 | -2/Protoforge | Found Prototype Device 25823 | -2/Protoforge | Identified Cep. Beam Splitter 25823 | -2/Protoforge | Found Prototype Device 25824 | -2/Protoforge | Identified Exp. Remote Shield 25826 | -2/Protoforge | Found Prototype Device 25828 | -2/Protoforge | Identified Exp. EM Disruption Field 25830 | -2/Protoforge | Found Prototype Processor 25832 | -2/Protoforge | Identified Cep. Projectile Intercept Suite 25840 | -2/Protoforge | Found Cep. Beam Splitter 25842 | -2/Protoforge | Found Exp. Force Field 25856 | -2/Protoforge | Spotted AP7-3 25885 | -2/Protoforge | Spotted AP7-3 25898 | -2/Protoforge | Destroyed AP7-3 25901 | -2/Protoforge | Destroyed AP7-3 25928 | -2/Protoforge | Found Cep. Thermoelectric Network 25931 | -2/Protoforge | Found Faulty Cep. Thermoelectric Network 25935 | -2/Protoforge | Found Faulty Cep. Cloak Mesh 25936 | -2/Protoforge | Found Faulty Cep. Cloak Mesh 25946 | -2/Protoforge | Found Prototype Device 25946 | -2/Protoforge | Identified Exp. ECM Suite 26176 | -2/Protoforge | Destroyed 16 combat bots 26188 | -2/Protoforge | Found Alien Artifact 26205 | -2/Protoforge | Found Transdimensional Reconstructor 26655 | -2/Protoforge | Found Faulty Cep. Plasma Driver 26656 | -2/Protoforge | Found Cep. XC Strikerail 26684 | -2/Protoforge | Found Cep. Variable Chargecaster 26746 | -2/Protoforge | Build established: Construct 26767 | -2/Protoforge | Destroyed 10 combat bots 26831 | -2/Protoforge | Destroyed 9 combat bots 26838 | -2/Protoforge | Spotted V077-e 26838 | -2/Protoforge | Spotted V518-e 26902 | -2/Protoforge | Used Subatomic Replicator to replicate Cep. Thermoelectric Network 26917 | -2/Protoforge | Destroyed Striker 26919 | -2/Protoforge | Spotted Striker 26919 | -2/Protoforge | Spotted Immortal 26931 | -2/Protoforge | Lost 4 parts (4u) 26940 | -2/Protoforge | Destroyed 8 combat bots 26940 | -2/Protoforge | Destroyed Striker 26957 | -2/Protoforge | Spotted Striker 26995 | -2/Protoforge | Destroyed Striker 27060 | -2/Protoforge | Destroyed Immortal 27118 | -2/Protoforge | Destroyed 15 combat bots 27214 | -2/Protoforge | Found Faulty Cep. Lightning Penetrator 27220 | -2/Protoforge | Found Cep. Lightning Penetrator 27338 | -2/Protoforge | Destroyed 13 combat bots 27367 | -2/Protoforge | Spotted Executioner 27371 | -2/Protoforge | Destroyed Executioner 27398 | -2/Protoforge | Found Exp. Targeting Computer 27406 | -2/Protoforge | Found Adv. Kinecellerator 27463 | -2/Protoforge | High security lockdown imminent 27477 | -2/Protoforge | Scanned by Researcher 27507 | -2/Protoforge | Spotted Executioner 27509 | -2/Protoforge | Destroyed Executioner 27526 | -2/Protoforge | Warped through subspace to slip node 27530 | -2/Protoforge | Destroyed 19 combat bots 27534 | -2/Protoforge | Entered Access 27534 | -1/Access | Evolved 2 slots: Utility x2 27771 | -1/Access | Build established: Scavenger-Construct 27784 | -1/Access | First assault squad dispatched 27813 | -1/Access | High security lockdown imminent 27893 | -1/Access | High security lockdown engaged 27948 | -1/Access | Spotted B-99 Colossus 28251 | -1/Access | Spotted Striker 28256 | -1/Access | Spotted Executioner 28256 | -1/Access | Spotted Striker 28262 | -1/Access | Destroyed Executioner 28264 | -1/Access | Destroyed Striker 28267 | -1/Access | Destroyed Striker 28355 | -1/Access | Destroyed 41 combat bots 28450 | -1/Access | Destroyed 10 combat bots 28503 | -1/Access | Spotted Executioner 28507 | -1/Access | Destroyed Executioner 28708 | -1/Access | Spotted Executioner 28709 | -1/Access | Destroyed Executioner 28711 | -1/Access | Destroyed Executioner 28722 | -1/Access | Spotted Executioner 28725 | -1/Access | Destroyed Executioner 28746 | -1/Access | Spotted Striker 28748 | -1/Access | Destroyed Executioner 28750 | -1/Access | Destroyed Striker 28752 | -1/Access | Destroyed Executioner 28784 | -1/Access | Destroyed 8 combat bots 28858 | -1/Access | Spotted Striker 28860 | -1/Access | Spotted Striker 28864 | -1/Access | Destroyed Striker 28874 | -1/Access | Destroyed Striker 28886 | -1/Access | Spotted Executioner 28890 | -1/Access | Spotted Executioner 28890 | -1/Access | Spotted Striker 28890 | -1/Access | Spotted Executioner 28893 | -1/Access | Destroyed Executioner 28895 | -1/Access | Destroyed Striker 28897 | -1/Access | Spotted Executioner 28897 | -1/Access | Spotted Executioner 28899 | -1/Access | Destroyed Executioner 28901 | -1/Access | Destroyed Executioner 28906 | -1/Access | Destroyed Executioner 28915 | -1/Access | Spotted Executioner 28915 | -1/Access | Spotted Striker 28917 | -1/Access | Destroyed Striker 28921 | -1/Access | Destroyed Executioner 28942 | -1/Access | Destroyed 21 combat bots 28950 | -1/Access | Spotted Striker 28952 | -1/Access | Spotted Striker 28957 | -1/Access | Spotted Executioner 28962 | -1/Access | Destroyed Striker 28974 | -1/Access | Spotted Striker 28974 | -1/Access | Spotted Executioner 28983 | -1/Access | Spotted Executioner 28984 | -1/Access | Destroyed Striker 29000 | -1/Access | Destroyed Executioner 29004 | -1/Access | Spotted Striker 29004 | -1/Access | Spotted Striker 29016 | -1/Access | System corruption reached 10% 29019 | -1/Access | Spotted Striker 29019 | -1/Access | Spotted Executioner 29020 | -1/Access | Warped through subspace 29038 | -1/Access | Destroyed 20 combat bots 29049 | -1/Access | Lost 15 parts (3p2n6u4w) 29158 | -1/Access | Found Fusion Bomb Launcher+ 29168 | -1/Access | Garrison activated, responded to threat 29174 | -1/Access | Core integrity fell below 50% 29210 | -1/Access | Spotted Striker 29210 | -1/Access | Spotted Executioner 29227 | -1/Access | Core integrity fell below 20% 29243 | -1/Access | Destroyed by Executioner with Helical Railgun Last Messages --------------- 29227_ Enh. Nova Cannon+ destroyed. 29230_ Penetrated by Slug. 29230_ Slug penetrates Wall. 29233_ Penetrated by Slug. 29233_ Slug penetrates Wall. 29233_ Penetrated by Slug. 29235_ G-73 Enforcer IFF system glitched. 29235_ P-80 Master resets G-73 Enforcer, system corruption cleaned. 29237_ S-43 Plague destroyed. 29237_ Acquired 35 matter. 29237_ Penetrated by Slug. 29237_ Slug penetrates Wall. 29237_ Penetrated by Slug. 29237_ Slug penetrates Wall. 29239_ HTOLH U 7GPSXEKT0LR3BR| TUAAD7//T<, 29240_ Slug penetrates Y-72 Warden. 29240_ Slug penetrates G-73 Enforcer. 29241_ Slug penetrates Wall. 29243_ Penetrated by Slug. Map ----- +----------------------------------------------------+ | ???????# #??????????? | | ???????# #??????????? | | ????????# ###??????????? | | ?????????# ! # ##???????????? | | ?????????# %! #???????????? | | ?????????# !%%# #????????????? | | ?????????# #????????????? | | ?????????# #????????????? | | ?????????# #?????????????? | | ?????????# #?????????????? | | ??????????######### m #?????????????? | | ?????????????########### #########?????? | | ?????????????# ??# ^ #?????? | | ?????????????# ??# #?????? | | ?????????????# ?# #?????? | | ?????????????# ?# "" "" +?????? | | ?????????????# ! # ""T"" #?????? | | ?????????????#== # """ #?????? | | ?????????????#== / = #?????? | | ?????????????#=! # #?????? | | ?????????????########### % #?????? | | ???????????????????????## g ###### #?????? | | ????????????????????????#gh #????????????? | | ????????????????????????#YEi#????????????? | | ????????????????????????#pY #????????????? | | ??????????????????????###@g ###??????????? | | ??????????????????????# [Kg #??????????? | | ??????????????????????# s #??????????? | | ??????????????????????# % #??????????? | | ??????????????????????# #####??????? | | ??????????????????????# # #??????? | | ??????????????????????# ; #??????? | | ??????????????????????# ;####??????? | | ????????????????????######;#### #????????? | | ????????????????????# ###????????? | | ????????????????????# [! ! #??????????? | | ????????????????????# [! #??????????? | | ????????????????????# #??????????? | | ????????????????????# #??????????? | | ????????????????????# *#??????????? | | ????????????????????# #??????????? | | ????????????????????# ! #??????????? | | ????????????????????###########??????????? | | ?????????????????????????????????????????? | | ?????????????????????????????????????????? | | ?????????????????????????????????????????? | | ?????????????????????????????????????????? | | ?????????????????????????????????????????? | | ?????????????????????????????????????????? | | ?????????????????????????????????????????? | +----------------------------------------------------+ Best States ------------- Heat Dissipation 111 Energy Generation 121 Energy Capacity 1904 Matter Stores 300 Matter Capacity 300 Sight Range 24 Robot Scan Range 16 Terrain Scan Density 10 Jamming Range 22 Cloak Strength 6 Armor Coverage 225 Resistance: KI 25 Resistance: TH 75 Resistance: EM 75 Weapon Cycling 30 Evasion (%) 71 Targeting Accuracy 28 Armor Integrity Analysis 50 Recoil Reduction 6 Kinecelleration 50 Item Schematics ----------------- Huge Storage Unit | -10/Materials | Hacked Cryofiber Web | -7/Recycling | Hacked Assault Drone Bay | -5/Zhirov | Free Exp. Optical Array | -5/Zhirov | Free Imp. Arc Thrower | -5/Zhirov | Free Exp. Heat Sink | -5/Zhirov | Free Exp. Power Amplifier | -2/Protoforge | Archive Exp. Power Shielding | -2/Protoforge | Archive Robot Schematics ------------------ B-74 Champion | -2/Protoforge | Archive Fabricated ------------ Cld. Impulse Thruster | x1 | -3/Research | Preloaded Repaired ---------- Nothing Studied --------- Wheel | -8/Materials | Hacked Lgt. Treads | -8/Materials | Hacked Flak Gun | -7/Factory | Hacked Flak Cannon | -7/Factory | Hacked Particle Gun | -7/Factory | Hacked Hvy. Gauss Cannon | -4/Factory | Hacked Mass Driver | -4/Factory | Hacked Myomer Leg | -4/Factory | Hacked Thunder Leg | -4/Factory | Hacked Dispersion Rifle | -4/Factory | Hacked Railgun | -3/Research | Hacked Gamma Rifle | -3/Testing | Hacked Fusion Bomb Launcher | -3/Testing | Hacked Enh. Nova Cannon | -2/Quarantine | Hacked Quantum Reactor | -2/Protoforge | Hacked Enh. Quantum Rifle | -2/Protoforge | Hacked Alien Tech Used ----------------- Integrated Reactor Transdimensional Reconstructor Sigix Broadsword Core Stripper Phase Redirector Phase Armor Dimensional Node Initializer Subatomic Replicator Achievements -------------- Boltbath Not Immortal After All Partsplosion Power Plant Sunderer Worth The Wait Challenges ------------ None Game ------ Seed VampiricWeaponsChip Manual? 0 Play Time 05:21:18 Cumulative 407.2 hours Start 2026.09.14 @ 00:44:42 End 2026.09.14 @ 21:09:55 Sessions 11 Manual Loads 0 Difficulty Rogue Special Mode None Game No. 358 Rogue 304 Adventurer 54 Explorer 0 Win Type - Total 24 Types 15/1/1/1/1/1/1/1/1/1 Lore% 83 Gallery% 71 Achievement% 71 Wizard Run 0 Options --------- Layout 1 ASCII 0 Keyboard 0 Movement Mouse Keybinds 1 Fullscreen 2 Font 32/Tamsyn Map View 50x35 Zoom Use 0% Tactical HUD 1 Map Filters NONE Filters NONE Steam 1 RUN: fbce4ee8-15f0-4a36-bc0d-53a0cdced77e